bitfinex/quotes_ETHUSD_20241108
["timestamp","ask_amount","ask_price","bid_price","bid_amount"]
[1731061298633,1.53529412,2904.7,2904.4,0.767]
[1731061299812,1.53529412,2904.9,2904.4,0.767]
[1731061301531,0.6476,2905.3,2904.7,0.8294]
[1731061301843,1.53529412,2905.0,2904.7,0.8294]
[1731061305609,0.6476,2905.8,2904.9,0.7615]
[1731061305839,1.77903479,2905.7,2905.1,0.7615]
[1731061306418,0.24374067,2905.7,2905.3,0.01]
[1731061306610,1.53529412,2905.7,2905.4,0.8254]
[1731061309410,3.32442626,2905.9,2905.4,0.8254]
[1731061309611,3.0,2905.8,2905.4,0.8254]
[1731061309919,0.6476,2905.7,2905.1,0.7958]
[1731061310130,0.6476,2905.7,2904.8,0.7958]
[1731061310131,3.32442626,2905.3,2904.8,0.7958]
[1731061310459,3.33244263,2905.2,2904.8,0.7958]
[1731061311519,3.98004263,2905.2,2904.6,0.831]
[1731061312547,0.98004263,2905.2,2904.6,0.831]
[1731061312851,0.39800426,2905.1,2904.6,0.831]
[1731061313359,0.33244263,2905.2,2904.7,0.01]
[1731061313568,3.0,2905.3,2904.8,0.7924]
[1731061314844,0.6476,2905.5,2904.8,0.7924]
[1731061316975,1.7905128,2905.7,2904.9,0.01]
[1731061317176,0.6476,2905.8,2905.0,0.8201]
[1731061317537,0.6476,2905.8,2905.0,0.8301]
[1731061318447,0.24381128,2905.7,2905.0,0.8301]
[1731061321679,3.0,2906.0,2905.0,0.8301]
[1731061321902,3.36338338,2906.1,2905.4,0.01]
[1731061322193,3.36338338,2906.1,2904.3,0.07884546]
[1731061322194,4.01098338,2906.4,2905.7,0.8205]
[1731061322366,0.65457412,2906.3,2905.7,0.8205]
[1731061323488,3.65457412,2906.3,2905.7,0.8205]
[1731061330624,0.6476,2906.2,2905.7,0.8205]
[1731061330824,0.6476,2906.2,2905.4,0.7895]
[1731061331123,0.43021741,2906.1,2905.4,0.7895]
[1731061331326,0.6476,2906.2,2905.4,0.7895]
[1731061331522,0.6476,2906.2,2905.3,0.01]
[1731061333100,1.79026271,2906.1,2905.3,0.01]
[1731061334827,1.79026271,2906.1,2905.2,0.7895]
[1731061337902,1.00694065,2906.2,2905.2,0.7895]
[1731061338243,4.79144972,2906.0,2905.2,0.7895]
[1731061338425,1.79144972,2906.0,2905.2,0.7895]
[1731061338733,1.79144972,2905.8,2905.2,0.7895]
[1731061341332,1.79144972,2905.8,2904.6,0.8067]
[1731061341540,0.6476,2905.5,2904.6,0.8067]
[1731061341741,5.33535469,2905.4,2904.6,0.8067]
[1731061341947,1.79144972,2905.4,2904.6,0.8067]
[1731061342638,1.79351774,2905.3,2904.6,0.8067]
[1731061343944,1.79351774,2905.4,2904.6,0.8067]
[1731061344246,1.79351774,2905.3,2904.6,0.8067]
[1731061344451,1.97286951,2905.2,2904.6,0.8067]
[1731061345312,0.17935177,2905.2,2904.6,0.8067]
[1731061347346,4.79351774,2905.5,2904.6,0.8167]
[1731061347521,1.79351774,2905.5,2904.6,0.8167]
[1731061347856,1.79351774,2905.6,2904.6,0.8167]
[1731061349116,1.79351774,2905.5,2904.6,0.8067]
[1731061349468,2.03762951,2905.4,2904.6,0.8067]
[1731061349614,1.79351774,2905.3,2904.6,0.8067]
[1731061351169,2.03762951,2905.4,2904.6,0.8067]
[1731061351369,1.79351774,2905.3,2904.6,0.8067]
[1731061351651,1.79351774,2905.2,2904.6,0.8067]
[1731061351815,0.17935177,2905.1,2904.6,0.8067]
[1731061352012,2.62046951,2905.1,2904.6,0.8067]
[1731061352248,2.62126107,2905.1,2904.6,0.8067]
[1731061352653,3.0,2905.0,2904.6,0.8067]
[1731061353350,3.82695177,2905.1,2904.6,0.8067]
[1731061353565,0.56212611,2905.0,2904.6,0.8067]
[1731061357441,0.17935177,2905.1,2904.6,0.8067]
[1731061358721,2.15189478,2905.3,2904.7,0.01]
[1731061358921,0.24411177,2905.4,2904.7,0.78]
[1731061359121,1.79251443,2905.7,2904.7,0.78]
[1731061360261,2.15187029,2905.8,2904.7,0.78]
[1731061360967,1.79251443,2905.7,2904.7,0.78]
[1731061361836,1.79251443,2905.7,2904.7,0.77]
[1731061362260,1.79251443,2905.7,2904.8,0.01]
[1731061362458,0.21518703,2905.6,2904.9,0.7509]
[1731061363534,0.21518703,2905.6,2904.2,0.1206492]
[1731061363535,0.21518703,2905.6,2905.0,0.7609]
[1731061363769,2.15187029,2905.8,2905.0,0.7609]
[1731061363967,1.79251443,2905.7,2905.0,0.7509]
[1731061364472,2.15187029,2905.8,2905.0,0.7509]
[1731061364964,1.79251443,2905.7,2905.0,0.7509]
[1731061365160,0.21518703,2905.6,2905.0,0.7509]
[1731061366429,0.21518703,2905.6,2905.0,0.7609]
[1731061366625,2.15187029,2905.8,2905.0,0.7609]
[1731061366846,0.35935586,2905.8,2905.0,0.7609]
[1731061367348,1.79364393,2906.0,2905.2,0.01]
[1731061367573,9.55211608,2906.2,2905.2,0.01]
[1731061367574,1.79364393,2906.2,2905.3,0.7945]
[1731061367895,1.94156593,2906.3,2905.4,0.8045]
[1731061368099,0.23002947,2906.2,2905.4,0.8045]
[1731061368455,0.23002947,2906.2,2905.6,0.01]
[1731061368655,0.147922,2906.3,2905.7,0.7945]
[1731061368956,0.147922,2906.3,2906.1,0.01]
[1731061369257,0.74340693,2906.6,2906.2,0.7945]
[1731061375206,0.74208411,2906.6,2906.2,0.7945]
[1731061375782,3.3592661,2907.0,2906.2,0.7945]
[1731061375976,4.27886435,2907.0,2906.2,0.7945]
[1731061376171,4.27886435,2907.0,2906.4,0.01]
[1731061376374,0.3592661,2907.0,2906.5,0.825]
[1731061376716,3.36338338,2907.1,2906.5,0.825]
[1731061378110,3.0,2907.0,2906.5,0.825]
[1731061380215,3.0,2907.0,2906.7,0.8]
[1731061384987,3.36338338,2907.1,2906.2,0.8027]
[1731061384988,0.6476,2907.1,2906.2,0.8027]
[1731061385703,0.6476,2907.1,2906.3,0.8272]
[1731061387829,0.6476,2907.1,2906.3,0.8172]
[1731061390442,3.0,2907.0,2906.3,0.8172]
[1731061390949,3.0,2907.0,2906.3,0.8272]
[1731061392651,3.0,2907.0,2906.6,0.7621]
[1731061394010,3.36338338,2907.1,2906.7,0.01]
[1731061394224,3.36338338,2907.1,2906.8,0.7621]
[1731061395446,3.0,2907.0,2906.8,0.7621]
[1731061406049,3.0,2907.0,2906.8,0.7721]
[1731061407117,3.0,2907.0,2906.8,0.7621]
[1731061411786,3.0,2907.0,2906.4,0.778]
[1731061412660,3.0,2907.0,2906.6,0.01]
[1731061414996,3.0,2907.0,2906.7,0.7787]
[1731061416372,4.79043606,2907.0,2906.7,0.7787]
[1731061416779,3.0,2907.0,2906.7,0.7787]
[1731061417376,4.79043606,2907.0,2906.7,0.7787]
[1731061417616,1.79043606,2906.9,2906.4,0.7787]
[1731061417817,1.79043606,2906.9,2906.5,0.01]
[1731061421420,1.79043606,2906.8,2906.5,0.01]
[1731061422404,1.79043606,2906.9,2906.5,0.01]
[1731061423228,1.79800756,2906.9,2906.5,0.01]
[1731061424436,1.79800756,2906.9,2906.6,0.7524]
[1731061426217,3.0,2907.0,2906.8,0.7524]
[1731061426416,4.79800756,2907.0,2906.8,0.7524]
[1731061426743,3.0,2907.0,2906.8,0.7524]
[1731061427807,4.79800756,2907.0,2906.8,0.7524]
[1731061428055,3.0,2907.0,2906.8,0.7524]
[1731061428354,4.7981151,2907.0,2906.8,0.7524]
[1731061431490,1.7981151,2906.9,2906.8,0.7524]
[1731061432588,4.7981151,2907.0,2906.8,0.7524]
[1731061432993,4.79817515,2907.0,2906.8,0.7524]
[1731061436364,1.79817515,2906.9,2906.8,0.7524]
[1731061436872,4.79817515,2907.0,2906.8,0.7524]
[1731061438107,4.79651871,2907.0,2906.8,0.7524]
[1731061440133,3.0,2907.0,2906.9,0.01]
[1731061440426,1.79651871,2907.1,2906.9,0.01]
[1731061441635,1.79647037,2907.1,2906.9,0.01]
[1731061443726,1.79647037,2907.2,2906.9,0.01]
[1731061446209,1.79640955,2907.2,2906.9,0.01]
[1731061446929,1.79640955,2907.3,2907.1,0.7614]
[1731061447137,1.79640955,2907.5,2907.3,0.01]
[1731061447309,1.79640955,2907.6,2907.3,0.01]
[1731061447629,2.80329146,2907.9,2907.3,0.01]
[1731061447630,1.79640955,2907.7,2907.4,0.7514]
[1731061449414,1.79640955,2907.8,2907.6,0.01]
[1731061449623,1.79640955,2907.9,2907.8,0.01]
[1731061449934,1.79640955,2908.0,2907.7,0.7514]
[1731061450294,1.79640955,2907.9,2907.7,0.7514]
[1731061450535,1.79640955,2908.0,2907.7,0.7514]
[1731061450704,1.79640955,2908.0,2907.8,0.01]
[1731061450913,1.79442929,2908.0,2907.8,0.01]
[1731061451228,1.79445356,2908.0,2907.8,0.01]
[1731061451428,1.79445356,2908.1,2907.8,0.01]
[1731061452532,8.15783694,2908.2,2907.8,0.01]
[1731061452735,4.79445356,2908.3,2908.1,0.7839]
[1731061452907,1.79445356,2908.3,2908.1,0.7839]
[1731061453439,1.79445356,2908.4,2908.1,0.7839]
[1731061453627,1.79445356,2908.5,2908.1,0.7839]
[1731061454515,1.79445356,2908.4,2908.1,0.7839]
[1731061454704,1.79445356,2908.5,2908.2,0.01]
[1731061454930,8.15783694,2908.7,2908.2,0.01]
[1731061455138,1.79445356,2908.6,2908.2,0.01]
[1731061455304,8.15783694,2908.7,2908.2,0.01]
[1731061455502,6.36338338,2908.7,2908.2,0.01]
[1731061455831,8.15592811,2908.7,2908.2,0.01]
[1731061456040,6.36338338,2908.7,2908.2,0.01]
[1731061456535,6.36338338,2908.7,2907.4,0.01]
[1731061456536,3.36338338,2908.7,2908.5,4.6e-07]
[1731061457303,4.05344591,2908.7,2908.5,4.6e-07]
[1731061457699,3.0,2908.6,2908.5,4.6e-07]
[1731061459641,3.36338338,2908.7,2907.6,1.2e-07]
[1731061461036,4.16408338,2908.7,2907.6,1.2e-07]
[1731061461672,4.16408338,2908.7,2907.2,0.55]
[1731061461850,4.16408338,2908.7,2907.4,0.55]
[1731061462044,0.8007,2908.3,2907.3,0.355]
[1731061462276,0.01,2908.2,2907.3,0.355]
[1731061462433,0.01,2908.2,2907.0,7.41]
[1731061462633,0.01,2908.2,2907.1,0.7882]
[1731061464682,0.01,2908.2,2907.2,0.0687828]
[1731061464869,0.01,2908.2,2907.3,0.8223]
[1731061465069,0.01,2908.2,2907.5,0.8223]
[1731061465486,0.8007,2908.3,2907.5,0.8223]
[1731061465813,0.777,2908.5,2907.7,0.8223]
[1731061466097,0.767,2908.5,2907.7,0.8223]
[1731061466804,0.00999988,2908.8,2907.8,0.06877189]
[1731061466979,0.00999988,2908.8,2907.8,0.8182]
[1731061469385,0.00999988,2908.7,2907.8,0.8182]
[1731061469899,0.8302,2908.9,2907.9,0.55]
[1731061470106,0.8302,2908.9,2908.0,0.8182]
[1731061472504,0.27383119,2909.3,2907.9,0.55]
[1731061472505,0.7572,2909.1,2908.2,0.7938]
[1731061472799,0.7672,2909.1,2908.2,0.7938]
[1731061477592,0.7572,2909.1,2908.2,0.7938]
[1731061477802,0.00999988,2909.2,2907.9,0.55]
[1731061477803,0.00999988,2909.2,2908.3,0.85416246]
[1731061477967,1.09143119,2909.3,2908.3,0.7854]
[1731061478300,0.00999988,2909.2,2908.3,0.7854]
[1731061478672,1.09143119,2909.3,2908.3,0.7854]
[1731061478997,0.00999988,2909.2,2908.3,0.7854]
[1731061480105,0.8176,2909.3,2908.3,0.7854]
[1731061480417,0.00999988,2909.2,2908.3,0.7854]
[1731061480901,0.8176,2909.3,2908.3,0.7854]
[1731061481107,0.00999988,2909.2,2908.3,0.7854]
[1731061482072,0.8176,2909.3,2908.3,0.7854]
[1731061482600,0.00999988,2909.2,2908.3,0.7854]
[1731061482780,0.8176,2909.3,2908.3,0.7854]
[1731061483114,0.8176,2909.3,2907.9,0.55]
[1731061483115,0.01,2909.3,2908.4,0.895858]
[1731061484025,0.8177,2909.5,2908.4,0.8271]
[1731061484228,0.01,2909.5,2908.6,0.8271]
[1731061487433,1.09214424,2909.7,2908.6,0.8271]
[1731061487434,0.8077,2909.7,2908.6,0.8271]
[1731061489136,0.00999988,2909.6,2908.6,0.8271]
[1731061489807,0.7612,2909.3,2908.6,0.8271]
[1731061494481,0.01,2909.4,2908.6,0.8271]
[1731061496484,3.23832785,2909.4,2908.6,0.8271]
[1731061497879,1.43077863,2909.5,2908.6,0.8271]
[1731061498178,1.45077851,2910.0,2909.0,0.7522]
[1731061498383,1.43077863,2909.9,2909.0,0.7522]
[1731061499318,4.43077863,2909.9,2909.0,0.7522]
[1731061499482,0.00999988,2910.0,2909.0,0.7522]
[1731061499684,4.44077851,2910.0,2909.0,0.7522]
[1731061499896,5.19367863,2910.1,2909.0,0.7522]
[1731061500114,0.01999988,2910.0,2909.0,0.7522]
[1731061500316,1.43077863,2909.9,2909.0,0.7522]
[1731061500499,0.01,2909.8,2909.0,0.7522]
[1731061500818,0.01,2909.6,2909.0,0.7522]
[1731061501017,0.00999988,2909.8,2909.0,0.7522]
[1731061502432,0.01,2909.6,2909.0,0.7522]
[1731061504225,5.0651354,2909.8,2909.0,0.7522]
[1731061504546,0.01,2909.6,2909.0,0.7522]
[1731061509059,0.01,2909.2,2908.8,0.83]
[1731061509219,1.43077863,2909.5,2908.8,0.83]
[1731061509415,2.22347851,2909.6,2908.8,0.83]
[1731061509614,3.0,2909.5,2908.8,0.83]
[1731061510055,4.43077863,2909.5,2908.8,0.83]
[1731061510231,3.0,2909.5,2908.8,0.83]
[1731061510613,1.43077863,2909.5,2908.8,0.83]
[1731061510964,5.17508233,2909.6,2908.8,0.83]
[1731061510965,1.45077851,2909.6,2908.8,0.83]
[1731061511149,0.01,2909.6,2908.8,0.83]
[1731061512416,4.43077863,2909.9,2908.8,0.83]
[1731061512671,4.43077863,2910.0,2908.9,0.7688]
[1731061513257,1.43077863,2910.0,2908.9,0.7688]
[1731061514535,1.44077851,2910.1,2908.9,0.7688]
[1731061515024,4.44077851,2910.1,2908.9,0.7688]
[1731061515443,4.43077863,2910.1,2908.9,0.7688]
[1731061515646,1.43077863,2910.1,2909.1,0.7536]
[1731061515857,4.44077863,2910.2,2909.1,0.7536]
[1731061516249,4.43077863,2910.2,2909.1,0.7536]
[1731061517057,1.43077863,2910.2,2909.3,0.7536]
[1731061517460,4.43077863,2910.3,2909.3,0.7536]
[1731061518039,4.44077851,2910.3,2909.3,0.7536]
[1731061520933,1.44077851,2910.3,2909.3,0.7536]
[1731061521551,4.44077851,2910.3,2909.3,0.7536]
[1731061521732,4.43077863,2910.3,2909.3,0.7536]
[1731061522133,1.44077851,2910.3,2909.3,0.7536]
[1731061523151,0.00999988,2910.3,2909.3,0.7536]
[1731061523768,1.44077851,2910.3,2909.3,0.7536]
[1731061523964,4.43077863,2910.4,2909.3,0.7536]
[1731061524180,1.43077863,2910.4,2909.5,0.7665]
[1731061524478,4.43077863,2910.5,2909.7,0.7665]
[1731061524635,0.7783,2910.8,2909.9,0.7665]
[1731061524636,1.44077863,2910.8,2909.9,0.7665]
[1731061524845,0.01,2910.8,2910.0,0.83522106]
[1731061525846,0.01,2910.8,2910.0,0.7665]
[1731061527540,0.01,2910.8,2910.0,0.7165]
[1731061528379,3.0,2911.2,2909.2,0.55]
[1731061528380,4.44270477,2911.2,2910.1,0.06872108]
[1731061528592,1.80152231,2911.4,2909.4,0.55]
[1731061528795,0.01,2911.4,2909.9,0.55]
[1731061529457,0.01,2911.4,2910.1,0.55]
[1731061530177,0.01,2911.4,2909.5,0.46768089]
[1731061530178,0.01,2911.4,2909.9,0.55]
[1731061530863,0.01,2911.4,2910.2,0.7643]
[1731061531062,2.09379981,2911.9,2910.2,0.7643]
[1731061531358,2.06132117,2912.0,2910.3,0.06870628]
[1731061531561,0.20613212,2911.9,2910.4,0.8296]
[1731061531881,0.20613212,2911.9,2910.6,0.8296]
[1731061532661,0.27145656,2912.0,2910.6,0.8296]
[1731061532864,1.78986461,2912.2,2910.6,0.8296]
[1731061533450,4.78986461,2912.2,2910.6,0.8296]
[1731061534054,3.7634,2912.1,2910.6,0.7796]
[1731061534586,0.7634,2912.1,2910.6,0.7796]
[1731061534796,0.37634,2912.0,2910.6,0.7796]
[1731061534950,0.7634,2911.9,2910.6,0.7796]
[1731061536177,0.37634,2912.0,2910.7,0.06870634]
[1731061536553,0.37634,2912.0,2910.3,0.55]
[1731061536866,0.37634,2912.0,2910.4,0.068702]
[1731061537061,0.37634,2912.0,2910.6,0.8271]
[1731061537278,0.2759267,2912.2,2910.7,0.89579898]
[1731061537596,0.35865386,2912.3,2910.7,0.89579898]
[1731061539496,0.785,2912.5,2910.7,0.89579898]
[1731061539696,3.785,2912.5,2910.9,0.8024]
[1731061539992,0.785,2912.5,2910.9,0.8024]
[1731061540154,0.24905178,2912.4,2910.9,0.8024]
[1731061541799,0.32898622,2912.5,2910.9,0.87109027]
[1731061541956,4.1421078,2912.7,2910.9,0.87109027]
[1731061542150,0.3586078,2912.7,2911.0,0.55]
[1731061542458,0.0154797,2912.9,2911.3,0.55]
[1731061542653,0.0154797,2912.9,2911.5,0.7803]
[1731061542882,0.0154797,2912.9,2911.6,0.84897731]
[1731061543812,0.0154797,2912.9,2911.8,0.8102]
[1731061544651,0.0154797,2912.9,2911.4,0.02]
[1731061544652,0.0154797,2912.9,2911.9,0.61866905]
[1731061544850,0.0154797,2912.9,2912.0,0.8106]
[1731061545586,0.0154797,2912.9,2912.2,0.8158]
[1731061545788,0.0154797,2912.9,2912.4,0.8158]
[1731061556455,0.0154797,2912.9,2911.1,0.01]
[1731061556618,0.0154797,2912.9,2911.4,0.7764]
[1731061557121,0.8312,2912.8,2911.4,0.7764]
[1731061559677,0.8148,2912.6,2911.4,0.7764]
[1731061560530,0.8148,2912.4,2911.4,0.7764]
[1731061562043,0.55,2912.3,2911.4,0.7764]
[1731061562291,0.8148,2912.4,2911.4,0.7764]
[1731061565782,1.15118739,2912.4,2911.4,0.7764]
[1731061566305,0.41511874,2912.4,2911.4,0.7764]
[1731061567102,0.7518,2912.8,2911.4,0.7764]
[1731061568884,0.55,2912.7,2911.4,0.7764]
[1731061569274,0.7851,2912.5,2911.4,0.7764]
[1731061571981,3.7851,2912.5,2911.4,0.7764]
[1731061572414,1.78825505,2912.6,2911.4,0.7764]
[1731061572611,0.17882551,2912.6,2911.4,0.7764]
[1731061573110,0.7790797,2912.9,2911.4,0.7764]
[1731061573317,1.11418141,2912.9,2911.4,0.7764]
[1731061573753,0.0154797,2912.9,2911.5,0.84188708]
[1731061574456,0.0154797,2912.9,2911.5,0.7732]
[1731061576240,0.0154797,2912.9,2911.6,0.06867788]
[1731061576413,3.35855306,2913.0,2912.9,0.9845203]
[1731061576628,1.0307467,2913.0,2912.9,0.9845203]
[1731061576818,0.35855306,2913.0,2912.9,0.9845203]
[1731061580652,5.14867996,2913.0,2912.9,0.9845203]
[1731061581435,2.14867996,2913.0,2912.9,0.9845203]
[1731061582241,0.35855306,2913.0,2912.9,0.9845203]
[1731061582438,0.90922359,2913.0,2912.9,0.9845203]
[1731061582772,3.90922359,2913.0,2912.9,0.9845203]
[1731061584140,6.05904599,2913.0,2912.9,0.9845203]
[1731061584576,6.84894599,2913.0,2912.9,0.9845203]
[1731061585137,7.39894599,2913.0,2912.9,0.9845203]
[1731061585340,5.24912359,2913.0,2912.9,0.9845203]
[1731061585939,0.55,2912.9,2912.3,0.7809]
[1731061586138,1.79215709,2912.5,2910.9,0.8204]
[1731061588386,1.7923,2912.5,2910.9,0.8204]
[1731061589087,4.7923,2912.5,2910.9,0.8204]
[1731061590180,1.7923,2912.3,2910.9,0.8204]
[1731061590383,1.7923,2912.2,2910.9,0.8204]
[1731061590691,3.0,2912.1,2910.9,0.8204]
[1731061592772,4.7923,2912.1,2910.9,0.8204]
[1731061593059,1.79203762,2912.0,2910.9,0.8204]
[1731061596513,1.79203762,2911.9,2910.9,0.8204]
[1731061597468,0.55067053,2912.0,2910.9,0.8204]
[1731061598793,5.3432809,2912.0,2910.9,0.8204]
[1731061599096,2.3432809,2912.0,2910.9,0.8204]
[1731061599671,1.79261037,2912.0,2910.9,0.8204]
[1731061599871,1.79261037,2912.0,2911.1,0.769]
[1731061602805,1.79306477,2912.0,2911.1,0.769]
[1731061607610,1.79305858,2912.0,2911.1,0.769]
[1731061608781,1.79305858,2911.8,2911.1,0.769]
[1731061611340,1.97236444,2911.8,2911.1,0.769]
[1731061612542,1.97189235,2911.8,2911.1,0.769]
[1731061613516,1.79258649,2911.8,2911.1,0.769]
[1731061621127,1.79185464,2911.8,2911.1,0.769]
[1731061622550,1.79185464,2911.9,2911.1,0.769]
[1731061623044,1.79185464,2912.2,2911.1,0.769]
[1731061623480,1.79185464,2912.3,2911.1,0.769]
[1731061623651,0.23486972,2912.2,2911.1,0.769]
[1731061624154,2.02672436,2912.2,2911.1,0.769]
[1731061624536,1.79185464,2912.2,2911.2,0.87059472]
[1731061624733,1.79185464,2912.5,2911.2,0.87059472]
[1731061625280,1.79185464,2912.6,2911.2,0.87059472]
[1731061625449,1.79185464,2912.5,2911.2,0.8019]
[1731061625970,1.7922613,2912.4,2911.2,0.8019]
[1731061626270,1.7922613,2912.0,2911.2,0.8019]
[1731061626476,1.7922613,2911.9,2911.2,0.8019]
[1731061626974,1.7922613,2911.8,2911.2,0.8019]
[1731061627140,1.7922613,2911.7,2911.2,0.8019]
[1731061627340,1.97148743,2911.7,2911.2,0.8019]
[1731061628539,0.17922613,2911.7,2911.2,0.8019]
[1731061629881,1.7922613,2911.8,2911.2,0.8019]
[1731061630109,1.7922613,2911.9,2911.2,0.8019]
[1731061630321,5.15071356,2912.1,2911.2,0.8019]
[1731061630322,1.7922613,2911.8,2911.2,0.8019]
[1731061630472,1.7922613,2911.9,2911.2,0.8019]
[1731061630807,1.79362138,2911.8,2911.2,0.8019]
[1731061632213,2.27298352,2911.8,2911.2,0.8019]
[1731061632598,1.79362138,2911.7,2911.2,0.8019]
[1731061632909,2.27298352,2911.8,2911.2,0.8019]
[1731061633073,1.79362138,2911.8,2911.2,0.8019]
[1731061633280,1.79362138,2911.7,2911.2,0.8019]
[1731061635677,1.79416815,2911.7,2911.2,0.8019]
[1731061635878,1.79416815,2911.8,2911.2,0.8019]
[1731061636485,3.0,2912.0,2911.2,0.8019]
[1731061636486,1.79416815,2911.9,2911.2,0.8019]
[1731061636901,1.79420387,2911.9,2911.2,0.8019]
[1731061639700,2.27362426,2911.9,2911.2,0.8019]
[1731061640495,2.27360253,2911.9,2911.2,0.8019]
[1731061642826,1.79418214,2911.8,2911.2,0.8019]
[1731061644230,2.27360253,2911.9,2911.2,0.8019]
[1731061644854,1.79418214,2912.2,2911.4,0.8135]
[1731061645037,3.0,2912.3,2910.9,0.52423304]
[1731061645038,1.79418214,2912.3,2911.6,0.8135]
[1731061645262,1.79418214,2912.4,2911.6,0.8135]
[1731061645554,1.9733304,2912.4,2911.8,0.8135]
[1731061645712,1.79391219,2912.6,2911.8,0.8135]
[1731061646218,1.79391219,2912.7,2911.8,0.8135]
[1731061646444,1.79391219,2913.0,2911.6,0.55]
[1731061646618,1.79391219,2913.0,2911.7,0.8135]
[1731061647112,1.79391219,2913.1,2911.7,0.8135]
[1731061647316,1.79391219,2913.0,2911.7,0.8135]
[1731061647756,1.79391219,2912.9,2911.7,0.8135]
[1731061647955,1.79391219,2913.0,2911.7,0.8135]
[1731061648248,1.79391219,2913.1,2911.7,0.8135]
[1731061648458,1.79391219,2913.1,2911.9,0.7546]
[1731061649913,1.79391219,2913.2,2911.9,0.7546]
[1731061650119,2.48857287,2913.2,2911.9,0.7546]
[1731061650341,2.48475646,2913.2,2911.9,0.7546]
[1731061650540,1.79009578,2913.2,2911.9,0.7546]
[1731061651267,1.79009578,2913.3,2912.0,0.83327318]
[1731061651823,1.79009578,2913.2,2912.0,0.7646]
[1731061652162,1.79009578,2913.3,2912.0,0.7646]
[1731061652362,2.35044536,2913.3,2912.0,0.7646]
[1731061653645,1.79009578,2913.2,2912.0,0.7646]
[1731061654770,0.56034958,2913.3,2912.0,0.7646]
[1731061655471,1.79009578,2913.1,2912.0,0.7646]
[1731061656038,4.79009578,2913.2,2912.0,0.7646]
[1731061656241,0.5673826,2913.1,2912.0,0.7646]
[1731061656848,0.777,2913.0,2912.0,0.7646]
[1731061657452,0.5673826,2913.1,2912.0,0.7646]
[1731061660085,3.5673826,2913.1,2912.0,0.7646]
[1731061664176,5.3552828,2913.1,2912.0,0.7646]
[1731061664468,0.61388828,2913.0,2912.0,0.7646]
[1731061666153,3.7836,2913.2,2912.0,0.7646]
[1731061666474,4.78748105,2913.5,2912.2,0.7619]
[1731061666774,2.12347239,2913.5,2912.2,0.7619]
[1731061667142,0.33599134,2913.5,2912.2,0.7619]
[1731061667371,1.78748105,2913.5,2912.2,0.7619]
[1731061667581,0.47874811,2913.4,2912.2,0.7619]
[1731061667794,1.78748105,2913.6,2912.4,0.7583]
[1731061669615,1.78648451,2913.6,2912.4,0.7583]
[1731061671358,5.48172318,2913.7,2912.4,0.7583]
[1731061673093,1.78648451,2913.6,2912.4,0.7583]
[1731061673292,0.54817232,2913.5,2912.4,0.7583]
[1731061677983,2.1444295,2913.7,2912.5,0.55]
[1731061678197,4.78593982,2914.0,2912.6,0.7626]
[1731061678401,1.78593982,2914.0,2912.6,0.7626]
[1731061678605,1.9645338,2913.9,2912.6,0.7626]
[1731061678831,4.78593982,2913.8,2912.6,0.7626]
[1731061678963,1.78593982,2913.7,2912.6,0.7626]
[1731061679400,1.7861681,2913.7,2912.6,0.7626]
[1731061680135,4.7861681,2913.8,2912.6,0.7626]
[1731061680284,0.57810621,2913.7,2912.6,0.7626]
[1731061681221,2.36427431,2913.7,2912.6,0.7626]
[1731061683096,3.0,2913.6,2912.6,0.7626]
[1731061683491,1.7861681,2913.5,2912.6,0.7626]
[1731061683706,4.7861681,2913.6,2912.6,0.7626]
[1731061684012,0.56881111,2913.5,2912.6,0.7626]
[1731061684322,2.36427431,2913.7,2912.6,0.7626]
[1731061686125,1.7861681,2913.6,2912.6,0.7626]
[1731061687594,3.32314097,2913.8,2912.6,0.7626]
[1731061687801,1.78805535,2913.7,2912.6,0.7626]
[1731061689492,2.12036945,2913.8,2912.6,0.7626]
[1731061690119,1.78805535,2913.7,2912.6,0.7626]
[1731061691104,1.78805535,2913.6,2912.6,0.7626]
[1731061691531,1.78805535,2913.6,2912.8,0.8286]
[1731061691680,1.78805535,2913.6,2912.9,0.55]
[1731061691886,1.78805535,2913.6,2913.0,0.8286]
[1731061693126,1.78805535,2913.7,2913.0,0.8286]
[1731061693740,2.48142753,2913.7,2913.0,0.8286]
[1731061694041,5.48142753,2913.7,2913.0,0.8286]
[1731061697127,2.4826306,2913.7,2913.0,0.8286]
[1731061697327,1.78925842,2913.7,2913.0,0.8286]
[1731061697534,1.78915979,2913.7,2913.0,0.8286]
[1731061697934,2.14756258,2913.8,2913.0,0.8286]
[1731061698148,0.35840279,2913.8,2913.1,0.55]
[1731061698308,3.0,2914.1,2913.2,0.7634]
[1731061698503,1.78924225,2914.0,2913.2,0.7634]
[1731061698843,1.78924225,2913.9,2913.2,0.7634]
[1731061699398,1.78924225,2913.8,2913.2,0.7634]
[1731061699602,0.17892423,2913.7,2913.2,0.7634]
[1731061699802,1.78882918,2913.8,2913.2,0.7634]
[1731061700448,1.78882918,2913.9,2913.2,0.7634]
[1731061700947,1.78882918,2913.8,2913.2,0.7634]
[1731061701542,1.78882918,2913.9,2913.2,0.7634]
[1731061702114,1.78882918,2914.0,2913.2,0.7634]
[1731061702320,3.0,2913.9,2913.2,0.7634]
[1731061702634,4.78882918,2913.9,2913.2,0.7634]
[1731061703554,1.78882918,2913.8,2913.2,0.7634]
[1731061703757,4.78882918,2913.9,2913.2,0.7634]
[1731061704211,1.78882918,2914.0,2913.2,0.7634]
[1731061707023,0.21470907,2914.1,2913.2,0.7634]
[1731061707223,1.78937818,2914.0,2913.2,0.7634]
[1731061707842,1.78937818,2913.9,2913.2,0.7634]
[1731061708323,1.78937818,2914.0,2913.2,0.7634]
[1731061708529,1.78937818,2913.9,2913.2,0.7634]
[1731061712141,1.78937818,2914.0,2913.2,0.7634]
[1731061712469,1.78937818,2914.1,2913.2,0.7634]
[1731061712966,1.78937818,2914.0,2913.2,0.7634]